[Event "*** SCC Grand Prix: Titled Tuesday Blitz"]
[Site "Chess.com"]
[Date "2020.10.13"]
[Round "1"]
[White "Ladislav1969"]
[Black "Blitzstream"]
[Result "0-1"]
[WhiteElo "2386"]
[BlackElo "2749"]
[TimeControl "180+1"]
[EndTime "10:07:08 PDT"]
[Termination "Blitzstream won by checkmate"]

1. e4 {[%clk 0:03:00.9]} 1... d5 {[%clk 0:02:57.3]} 2. exd5 {[%clk 0:03:00.4]}
2... Qxd5 {[%clk 0:02:49.1]} 3. Nc3 {[%clk 0:03:01.3]} 3... Qa5 {[%clk
0:02:48.5]} 4. Nf3 {[%clk 0:03:00.9]} 4... Nf6 {[%clk 0:02:48]} 5. d4 {[%clk
0:02:59.9]} 5... c6 {[%clk 0:02:46.4]} 6. Bc4 {[%clk 0:02:57.2]} 6... Bf5 {[%clk
0:02:43.1]} 7. Bd2 {[%clk 0:02:53.7]} 7... e6 {[%clk 0:02:42.2]} 8. d5 {[%clk
0:02:45.6]} 8... Qc5 {[%clk 0:02:36.9]} 9. dxc6 {[%clk 0:02:43.1]} 9... Nxc6
{[%clk 0:02:35.2]} 10. Bb5 {[%clk 0:02:34.9]} 10... O-O-O {[%clk 0:02:32.2]} 11.
Qe2 {[%clk 0:02:20.8]} 11... Bg4 {[%clk 0:02:28.5]} 12. Be3 {[%clk 0:02:15.9]}
12... Qd6 {[%clk 0:02:21.2]} 13. Bxc6 {[%clk 0:02:01.8]} 13... Qxc6 {[%clk
0:02:20.3]} 14. Nb5 {[%clk 0:01:35.5]} 14... Bc5 {[%clk 0:01:43.9]} 15. Nxa7+
{[%clk 0:01:23.3]} 15... Bxa7 {[%clk 0:01:40.2]} 16. Bxa7 {[%clk 0:01:23.9]}
16... Nd5 {[%clk 0:01:18.9]} 17. Be3 {[%clk 0:01:17.4]} 17... Nxe3 {[%clk
0:00:56.5]} 18. Qxe3 {[%clk 0:01:13.6]} 18... Bxf3 {[%clk 0:00:53.7]} 19. gxf3
{[%clk 0:01:12.4]} 19... Rd5 {[%clk 0:00:50.3]} 20. c4 {[%clk 0:01:05.1]} 20...
Rf5 {[%clk 0:00:47.1]} 21. O-O-O {[%clk 0:00:59.2]} 21... Rxf3 {[%clk
0:00:41.9]} 22. Qd4 {[%clk 0:00:59]} 22... f6 {[%clk 0:00:33.4]} 23. Rhg1 {[%clk
0:00:54.7]} 23... e5 {[%clk 0:00:25]} 24. Qg4+ {[%clk 0:00:54.2]} 24... Kb8
{[%clk 0:00:23.1]} 25. Qxg7 {[%clk 0:00:53.6]} 25... Rc8 {[%clk 0:00:20.4]} 26.
Qxh7 {[%clk 0:00:51.9]} 26... Rxf2 {[%clk 0:00:17.3]} 27. Kb1 {[%clk 0:00:45.7]}
27... Qb6 {[%clk 0:00:04.7]} 28. b3 {[%clk 0:00:34.4]} 28... Qa5 {[%clk
0:00:05]} 29. a4 {[%clk 0:00:09.2]} 29... Qc3 {[%clk 0:00:04.9]} 30. Rd7 {[%clk
0:00:03.8]} 30... Qb2# {[%clk 0:00:04.5]} 0-1

[Event "*** SCC Grand Prix: Titled Tuesday Blitz"]
[Site "Chess.com"]
[Date "2020.10.13"]
[Round "1"]
[White "GM_Huschenbeth"]
[Black "gixfantastix"]
[Result "0-1"]
[WhiteElo "2372"]
[BlackElo "2089"]
[TimeControl "180+1"]
[EndTime "10:07:10 PDT"]
[Termination "gixfantastix won on time"]

1. e4 {[%clk 0:02:58.9]} 1... c6 {[%clk 0:02:56]} 2. d4 {[%clk 0:02:58.4]} 2...
d5 {[%clk 0:02:56]} 3. Nc3 {[%clk 0:02:59.2]} 3... dxe4 {[%clk 0:02:55.5]} 4.
Nxe4 {[%clk 0:03:00.1]} 4... Bf5 {[%clk 0:02:55.1]} 5. Ng3 {[%clk 0:02:59.8]}
5... Bg6 {[%clk 0:02:55.6]} 6. h4 {[%clk 0:02:59.8]} 6... h6 {[%clk 0:02:55.7]}
7. Nf3 {[%clk 0:02:58.7]} 7... Nd7 {[%clk 0:02:55.3]} 8. Bd3 {[%clk 0:02:57.7]}
8... Bxd3 {[%clk 0:02:53.1]} 9. Qxd3 {[%clk 0:02:58.6]} 9... Ngf6 {[%clk
0:02:53.5]} 10. Bd2 {[%clk 0:02:58.3]} 10... e6 {[%clk 0:02:53.3]} 11. O-O-O
{[%clk 0:02:56.9]} 11... Be7 {[%clk 0:02:53.3]} 12. Qe2 {[%clk 0:02:54.7]} 12...
O-O {[%clk 0:02:52.2]} 13. Nf1 {[%clk 0:02:54.1]} 13... Nb6 {[%clk 0:01:50.2]}
14. g4 {[%clk 0:02:52]} 14... Nxg4 {[%clk 0:01:47.7]} 15. Rg1 {[%clk 0:02:51.8]}
15... f5 {[%clk 0:01:25.1]} 16. Qxe6+ {[%clk 0:02:37.5]} 16... Kh8 {[%clk
0:01:21.5]} 17. Ne5 {[%clk 0:02:26.7]} 17... Rf6 {[%clk 0:01:11.2]} 18. Nf7+
{[%clk 0:01:58.8]} 18... Rxf7 {[%clk 0:01:07.5]} 19. Qxf7 {[%clk 0:01:59.7]}
19... Bf6 {[%clk 0:01:01.6]} 20. c3 {[%clk 0:01:19.2]} 20... Qd6 {[%clk
0:00:32.9]} 21. f3 {[%clk 0:00:53.6]} 21... Nf2 {[%clk 0:00:20]} 22. Bxh6 {[%clk
0:00:52.6]} 22... gxh6 {[%clk 0:00:15.2]} 23. Rd2 {[%clk 0:00:19.6]} 23... Rf8
{[%clk 0:00:12.1]} 24. Qg6 {[%clk 0:00:19.2]} 24... Qf4 {[%clk 0:00:10.4]} 25.
Kc2 {[%clk 0:00:13.6]} 25... Nh3 {[%clk 0:00:08.3]} 26. Rg3 {[%clk 0:00:09.9]}
26... Nd5 {[%clk 0:00:05.6]} 27. Rdg2 {[%clk 0:00:04.8]} 27... b5 {[%clk
0:00:05.3]} 0-1

[Event "*** SCC Grand Prix: Titled Tuesday Blitz"]
[Site "Chess.com"]
[Date "2020.10.13"]
[Round "1"]
[White "Morshynska"]
[Black "GelmanAlexander"]
[Result "0-1"]
[WhiteElo "2249"]
[BlackElo "2581"]
[TimeControl "180+1"]
[EndTime "10:07:12 PDT"]
[Termination "GelmanAlexander won on time"]

1. Nf3 {[%clk 0:03:00.1]} 1... c5 {[%clk 0:02:58.6]} 2. g3 {[%clk 0:03:01]} 2...
e6 {[%clk 0:02:58.3]} 3. Bg2 {[%clk 0:03:01.4]} 3... Nf6 {[%clk 0:02:58.4]} 4.
O-O {[%clk 0:03:01.2]} 4... Be7 {[%clk 0:02:58.7]} 5. c4 {[%clk 0:03:00.8]} 5...
d6 {[%clk 0:02:57.8]} 6. Nc3 {[%clk 0:02:59.8]} 6... a6 {[%clk 0:02:57.8]} 7. d4
{[%clk 0:02:57.8]} 7... cxd4 {[%clk 0:02:57.7]} 8. Nxd4 {[%clk 0:02:58.7]} 8...
Nbd7 {[%clk 0:02:57.9]} 9. b3 {[%clk 0:02:57.9]} 9... O-O {[%clk 0:02:57.7]} 10.
Bb2 {[%clk 0:02:57.4]} 10... Qc7 {[%clk 0:02:57.9]} 11. Rc1 {[%clk 0:02:56.4]}
11... Ne5 {[%clk 0:02:57.6]} 12. h3 {[%clk 0:02:49.7]} 12... Bd7 {[%clk
0:02:57.6]} 13. a4 {[%clk 0:02:39.6]} 13... Rac8 {[%clk 0:02:56.1]} 14. Qd2
{[%clk 0:02:37]} 14... Rfd8 {[%clk 0:02:55.6]} 15. Rfd1 {[%clk 0:02:36.2]} 15...
h6 {[%clk 0:02:55.3]} 16. Ne4 {[%clk 0:02:29.9]} 16... Qb6 {[%clk 0:02:44.5]}
17. a5 {[%clk 0:02:20.3]} 17... Qc7 {[%clk 0:02:39]} 18. Ba3 {[%clk 0:02:08.3]}
18... Be8 {[%clk 0:02:32.9]} 19. Nxf6+ {[%clk 0:01:56.1]} 19... Bxf6 {[%clk
0:02:32.9]} 20. Nf3 {[%clk 0:01:54.4]} 20... Nxf3+ {[%clk 0:02:08.9]} 21. Bxf3
{[%clk 0:01:55.3]} 21... Be7 {[%clk 0:02:05.6]} 22. h4 {[%clk 0:01:44.8]} 22...
Bc6 {[%clk 0:02:04.7]} 23. Bxc6 {[%clk 0:01:14.6]} 23... bxc6 {[%clk 0:02:02.7]}
24. Rb1 {[%clk 0:00:58.2]} 24... Rb8 {[%clk 0:01:52.9]} 25. b4 {[%clk
0:00:50.5]} 25... d5 {[%clk 0:01:49.2]} 26. Qd3 {[%clk 0:00:37.1]} 26... Qb7
{[%clk 0:01:34.2]} 27. e4 {[%clk 0:00:20.9]} 27... dxc4 {[%clk 0:01:16.7]} 28.
Qxc4 {[%clk 0:00:21.8]} 28... Qb5 {[%clk 0:01:17.1]} 29. Qc2 {[%clk 0:00:16.8]}
29... Rxd1+ {[%clk 0:01:12.4]} 30. Qxd1 {[%clk 0:00:17.7]} 30... Qc4 {[%clk
0:01:03.7]} 31. Qf3 {[%clk 0:00:09.3]} 31... Bxb4 {[%clk 0:00:53.9]} 32. Rc1
{[%clk 0:00:04.7]} 32... Qb5 {[%clk 0:00:25.6]} 33. Bxb4 {[%clk 0:00:03.9]}
33... Qxb4 {[%clk 0:00:26.5]} 34. Rxc6 {[%clk 0:00:03.8]} 34... Qxa5 {[%clk
0:00:26.8]} 35. Rd6 {[%clk 0:00:01.9]} 35... Qb5 {[%clk 0:00:17.9]} 36. Kg2
{[%clk 0:00:01.4]} 36... a5 {[%clk 0:00:17.9]} 0-1

[Event "*** SCC Grand Prix: Titled Tuesday Blitz"]
[Site "Chess.com"]
[Date "2020.10.13"]
[Round "1"]
[White "nochewycandy"]
[Black "tylityli"]
[Result "1-0"]
[WhiteElo "2555"]
[BlackElo "2199"]
[TimeControl "180+1"]
[EndTime "10:07:12 PDT"]
[Termination "nochewycandy won on time"]

1. e4 {[%clk 0:02:58.4]} 1... e5 {[%clk 0:02:59.1]} 2. Qh5 {[%clk 0:02:57.8]}
2... Nc6 {[%clk 0:02:55.7]} 3. Bc4 {[%clk 0:02:56.6]} 3... g6 {[%clk 0:02:54.4]}
4. Qf3 {[%clk 0:02:56.7]} 4... Nf6 {[%clk 0:02:54.2]} 5. Ne2 {[%clk 0:02:54.6]}
5... Bg7 {[%clk 0:02:54.2]} 6. Nbc3 {[%clk 0:02:49.9]} 6... O-O {[%clk
0:02:53.7]} 7. d3 {[%clk 0:02:50.2]} 7... h6 {[%clk 0:02:52.5]} 8. g4 {[%clk
0:02:50.3]} 8... d6 {[%clk 0:02:47.9]} 9. g5 {[%clk 0:02:49.5]} 9... hxg5 {[%clk
0:02:21]} 10. Bxg5 {[%clk 0:02:50.4]} 10... Be6 {[%clk 0:02:13.7]} 11. Nd5
{[%clk 0:02:39]} 11... Bxd5 {[%clk 0:02:12.7]} 12. Bxd5 {[%clk 0:02:39.8]} 12...
Nb4 {[%clk 0:02:07.2]} 13. Bb3 {[%clk 0:02:38.4]} 13... a5 {[%clk 0:01:57.7]}
14. a4 {[%clk 0:02:38.2]} 14... b5 {[%clk 0:01:52.4]} 15. h4 {[%clk 0:02:32.3]}
15... bxa4 {[%clk 0:01:51.1]} 16. Rxa4 {[%clk 0:02:31.1]} 16... d5 {[%clk
0:01:48.6]} 17. Ng3 {[%clk 0:02:19.2]} 17... Qd6 {[%clk 0:01:40.2]} 18. h5
{[%clk 0:02:05.8]} 18... dxe4 {[%clk 0:01:34.1]} 19. Nxe4 {[%clk 0:01:54.8]}
19... Nxe4 {[%clk 0:01:32.8]} 20. Qxe4 {[%clk 0:01:55.7]} 20... c6 {[%clk
0:01:12.6]} 21. hxg6 {[%clk 0:01:54]} 21... Nd5 {[%clk 0:01:11.7]} 22. gxf7+
{[%clk 0:01:28.5]} 22... Rxf7 {[%clk 0:01:07.7]} 23. Qh7+ {[%clk 0:01:23]} 23...
Kf8 {[%clk 0:01:06.9]} 24. Rg4 {[%clk 0:01:01.5]} 24... Qc5 {[%clk 0:00:52.3]}
25. Rh2 {[%clk 0:00:33.9]} 25... a4 {[%clk 0:00:43.6]} 26. Bxd5 {[%clk
0:00:30.1]} 26... Qxd5 {[%clk 0:00:20]} 27. Bh6 {[%clk 0:00:30.6]} 27... Raa7
{[%clk 0:00:15.8]} 28. Bxg7+ {[%clk 0:00:28.1]} 28... Rxg7 {[%clk 0:00:15.2]}
29. Qf5+ {[%clk 0:00:27.6]} 29... Ke8 {[%clk 0:00:08.6]} 30. Qc8+ {[%clk
0:00:26.8]} 30... Kf7 {[%clk 0:00:08.7]} 31. Qf5+ {[%clk 0:00:24.9]} 31... Kg8
{[%clk 0:00:07.4]} 32. Qc8+ {[%clk 0:00:21.6]} 32... Kf7 {[%clk 0:00:06.8]} 33.
Rxg7+ {[%clk 0:00:22.1]} 33... Kxg7 {[%clk 0:00:06.7]} 34. Qg4+ {[%clk
0:00:22.8]} 34... Kf6 {[%clk 0:00:03.6]} 35. Rh6+ {[%clk 0:00:22.5]} 35... Ke7
{[%clk 0:00:03.7]} 36. Qg7+ {[%clk 0:00:22.8]} 1-0

[Event "*** SCC Grand Prix: Titled Tuesday Blitz"]
[Site "Chess.com"]
[Date "2020.10.13"]
[Round "1"]
[White "VincentKeymer"]
[Black "ama18"]
[Result "1-0"]
[WhiteElo "2844"]
[BlackElo "2444"]
[TimeControl "180+1"]
[EndTime "10:07:13 PDT"]
[Termination "VincentKeymer won on time"]

1. Nf3 {[%clk 0:03:00.9]} 1... Nf6 {[%clk 0:02:59.6]} 2. c4 {[%clk 0:03:00.1]}
2... c5 {[%clk 0:02:59.4]} 3. Nc3 {[%clk 0:03:00.6]} 3... e6 {[%clk 0:02:59.1]}
4. g3 {[%clk 0:02:59.9]} 4... b6 {[%clk 0:02:59.2]} 5. Bg2 {[%clk 0:02:59.7]}
5... Bb7 {[%clk 0:02:59.8]} 6. O-O {[%clk 0:03:00]} 6... d6 {[%clk 0:03:00.3]}
7. d4 {[%clk 0:03:00.3]} 7... cxd4 {[%clk 0:03:01.2]} 8. Qxd4 {[%clk 0:03:01]}
8... a6 {[%clk 0:03:01.1]} 9. Rd1 {[%clk 0:03:00.6]} 9... Qc7 {[%clk 0:03:00.9]}
10. Bg5 {[%clk 0:02:59.7]} 10... Nbd7 {[%clk 0:03:00.4]} 11. Rac1 {[%clk
0:02:55.9]} 11... Be7 {[%clk 0:03:00.1]} 12. b3 {[%clk 0:02:56.1]} 12... O-O
{[%clk 0:02:59.7]} 13. Qd2 {[%clk 0:02:55.7]} 13... h6 {[%clk 0:02:59.2]} 14.
Bf4 {[%clk 0:02:55.8]} 14... e5 {[%clk 0:02:54.3]} 15. Be3 {[%clk 0:02:55.5]}
15... Ne4 {[%clk 0:02:48.8]} 16. Nxe4 {[%clk 0:02:53.6]} 16... Bxe4 {[%clk
0:02:49.7]} 17. Nxe5 {[%clk 0:02:50.3]} 17... Bxg2 {[%clk 0:02:44.5]} 18. Nxd7
{[%clk 0:02:50.2]} 18... Bh3 {[%clk 0:02:13.9]} 19. Nxf8 {[%clk 0:02:47.2]}
19... Bxf8 {[%clk 0:02:10.9]} 20. f3 {[%clk 0:02:37.6]} 20... Re8 {[%clk
0:02:08.5]} 21. Bf2 {[%clk 0:02:33.7]} 21... Qe7 {[%clk 0:02:01.5]} 22. e4
{[%clk 0:02:31.7]} 22... Qf6 {[%clk 0:01:54.2]} 23. Qc3 {[%clk 0:02:27.6]} 23...
Qg6 {[%clk 0:01:53.8]} 24. Rc2 {[%clk 0:02:03.3]} 24... f5 {[%clk 0:01:48.1]}
25. exf5 {[%clk 0:02:01.9]} 25... Bxf5 {[%clk 0:01:45.3]} 26. Rcd2 {[%clk
0:02:00.2]} 26... Bh3 {[%clk 0:01:40.9]} 27. Qd3 {[%clk 0:01:53.7]} 27... Bf5
{[%clk 0:01:39.5]} 28. Qd4 {[%clk 0:01:50.2]} 28... Bh3 {[%clk 0:01:36.8]} 29.
Qh4 {[%clk 0:01:49.2]} 29... Bc8 {[%clk 0:01:32.5]} 30. Kg2 {[%clk 0:01:41]}
30... Bb7 {[%clk 0:01:31.5]} 31. Qd4 {[%clk 0:01:27.5]} 31... Be7 {[%clk
0:01:23.2]} 32. Rd3 {[%clk 0:01:23.1]} 32... Rf8 {[%clk 0:01:21.6]} 33. Qxb6
{[%clk 0:01:09]} 33... Ba8 {[%clk 0:00:49.6]} 34. Qd4 {[%clk 0:00:51.8]} 34...
Qf5 {[%clk 0:00:35.6]} 35. Qc3 {[%clk 0:00:44.7]} 35... Bf6 {[%clk 0:00:35.1]}
36. Qe1 {[%clk 0:00:43.4]} 36... Be5 {[%clk 0:00:21.1]} 37. Qe2 {[%clk
0:00:41.7]} 37... g5 {[%clk 0:00:20.3]} 38. Rd5 {[%clk 0:00:39.9]} 38... Bxd5
{[%clk 0:00:10.4]} 39. Rxd5 {[%clk 0:00:40.8]} 39... Qf6 {[%clk 0:00:10.5]} 40.
c5 {[%clk 0:00:38.4]} 40... Kg7 {[%clk 0:00:03.7]} 41. cxd6 {[%clk 0:00:37.9]}
41... Bxd6 {[%clk 0:00:04.6]} 42. Bd4 {[%clk 0:00:37.1]} 1-0

[Event "*** SCC Grand Prix: Titled Tuesday Blitz"]
[Site "Chess.com"]
[Date "2020.10.13"]
[Round "1"]
[White "Savagelittlemole"]
[Black "chesslh19"]
[Result "1-0"]
[WhiteElo "2567"]
[BlackElo "2224"]
[TimeControl "180+1"]
[EndTime "10:07:15 PDT"]
[Termination "Savagelittlemole won by checkmate"]

1. e4 {[%clk 0:02:56.2]} 1... e5 {[%clk 0:02:55.8]} 2. Nf3 {[%clk 0:02:55.5]}
2... Nf6 {[%clk 0:02:54.9]} 3. Nxe5 {[%clk 0:02:53.8]} 3... d6 {[%clk
0:02:55.1]} 4. Nf3 {[%clk 0:02:54.2]} 4... Nxe4 {[%clk 0:02:55]} 5. Nc3 {[%clk
0:02:54.8]} 5... Nxc3 {[%clk 0:02:55.2]} 6. dxc3 {[%clk 0:02:55.7]} 6... Ke7
{[%clk 0:02:55.8]} 7. Bd3 {[%clk 0:02:48]} 7... Be6 {[%clk 0:02:39.7]} 8. O-O
{[%clk 0:02:46.5]} 8... Kd7 {[%clk 0:02:34.4]} 9. Re1 {[%clk 0:02:44.9]} 9...
Kc8 {[%clk 0:02:33.9]} 10. c4 {[%clk 0:02:44.1]} 10... Nc6 {[%clk 0:02:33.5]}
11. h3 {[%clk 0:02:44]} 11... Be7 {[%clk 0:02:31.4]} 12. Be3 {[%clk 0:02:42.4]}
12... Qd7 {[%clk 0:02:25]} 13. Rb1 {[%clk 0:02:42]} 13... Bf6 {[%clk 0:02:05.5]}
14. Qd2 {[%clk 0:02:29.4]} 14... h6 {[%clk 0:02:00.8]} 15. b4 {[%clk 0:02:28.1]}
15... Re8 {[%clk 0:01:43.8]} 16. b5 {[%clk 0:02:26.7]} 16... Ne5 {[%clk
0:01:43.8]} 17. Nxe5 {[%clk 0:02:25.7]} 17... Bxe5 {[%clk 0:01:36.3]} 18. a4
{[%clk 0:02:12.6]} 18... Bxh3 {[%clk 0:01:16.8]} 19. gxh3 {[%clk 0:01:58.5]}
19... Qxh3 {[%clk 0:01:17.7]} 20. f4 {[%clk 0:01:58.5]} 20... Qg3+ {[%clk
0:01:12.5]} 21. Qg2 {[%clk 0:01:57.4]} 21... Bxf4 {[%clk 0:00:56.6]} 22. Qxg3
{[%clk 0:01:49.9]} 22... Bxg3 {[%clk 0:00:56.4]} 23. Bf2 {[%clk 0:01:37.4]}
23... Bxf2+ {[%clk 0:00:48.5]} 24. Kxf2 {[%clk 0:01:38.3]} 24... Rxe1 {[%clk
0:00:22.3]} 25. Rxe1 {[%clk 0:01:39.2]} 25... Kd7 {[%clk 0:00:20.5]} 26. Bf5+
{[%clk 0:01:37.6]} 26... Kd8 {[%clk 0:00:20.6]} 27. a5 {[%clk 0:01:26]} 27... a6
{[%clk 0:00:17]} 28. b6 {[%clk 0:01:22.3]} 28... cxb6 {[%clk 0:00:17.2]} 29.
axb6 {[%clk 0:01:23.2]} 29... a5 {[%clk 0:00:18.1]} 30. Be4 {[%clk 0:01:21.2]}
30... a4 {[%clk 0:00:15.6]} 31. Ra1 {[%clk 0:01:11]} 31... Kc8 {[%clk
0:00:12.5]} 32. Ke3 {[%clk 0:01:08.4]} 32... Ra5 {[%clk 0:00:12.6]} 33. Bd5
{[%clk 0:01:05.6]} 33... f6 {[%clk 0:00:09.5]} 34. Kd3 {[%clk 0:01:05]} 34...
Ra6 {[%clk 0:00:09.2]} 35. Kc3 {[%clk 0:01:02.2]} 35... Rxb6 {[%clk 0:00:08.2]}
36. Rxa4 {[%clk 0:01:02.3]} 36... Ra6 {[%clk 0:00:08.7]} 37. Rb4 {[%clk
0:00:56.1]} 37... Ra7 {[%clk 0:00:08.1]} 38. Rb1 {[%clk 0:00:56.2]} 38... Kc7
{[%clk 0:00:06.3]} 39. Rg1 {[%clk 0:00:56.2]} 39... g5 {[%clk 0:00:04.9]} 40.
Rh1 {[%clk 0:00:52.7]} 40... Ra3+ {[%clk 0:00:04.2]} 41. Kd4 {[%clk 0:00:52.6]}
41... Rg3 {[%clk 0:00:03]} 42. Rxh6 {[%clk 0:00:51.8]} 42... b6 {[%clk
0:00:02.9]} 43. Rxf6 {[%clk 0:00:51.2]} 43... g4 {[%clk 0:00:03.4]} 44. Rg6
{[%clk 0:00:50.9]} 44... Rg1 {[%clk 0:00:03.1]} 45. Rg7+ {[%clk 0:00:49.3]}
45... Kd8 {[%clk 0:00:02.6]} 46. Kc3 {[%clk 0:00:49.4]} 46... g3 {[%clk
0:00:03]} 47. Kb4 {[%clk 0:00:49.4]} 47... Ke8 {[%clk 0:00:02.9]} 48. Kb5 {[%clk
0:00:48.2]} 48... Rb1+ {[%clk 0:00:03.1]} 49. Kc6 {[%clk 0:00:47.9]} 49... Rb2
{[%clk 0:00:03]} 50. Kxd6 {[%clk 0:00:47.4]} 50... Kf8 {[%clk 0:00:03.3]} 51.
Rg8# {[%clk 0:00:47.4]} 1-0

[Event "*** SCC Grand Prix: Titled Tuesday Blitz"]
[Site "Chess.com"]
[Date "2020.10.13"]
[Round "1"]
[White "kakakz"]
[Black "Gloomy_Wanderer"]
[Result "0-1"]
[WhiteElo "2388"]
[BlackElo "2755"]
[TimeControl "180+1"]
[EndTime "10:07:16 PDT"]
[Termination "Gloomy_Wanderer won on time"]

1. d4 {[%clk 0:02:59.1]} 1... Nf6 {[%clk 0:02:59.7]} 2. c4 {[%clk 0:02:59]} 2...
e6 {[%clk 0:03:00]} 3. Nf3 {[%clk 0:02:59]} 3... d5 {[%clk 0:02:59.6]} 4. g3
{[%clk 0:02:58.7]} 4... dxc4 {[%clk 0:02:58.5]} 5. Bg2 {[%clk 0:02:56.1]} 5...
Bb4+ {[%clk 0:02:58.5]} 6. Bd2 {[%clk 0:02:55.3]} 6... a5 {[%clk 0:02:58.8]} 7.
a3 {[%clk 0:02:50.1]} 7... Bxd2+ {[%clk 0:02:58.8]} 8. Nbxd2 {[%clk 0:02:49.9]}
8... b5 {[%clk 0:02:58.2]} 9. Ne5 {[%clk 0:02:46.7]} 9... Nd5 {[%clk 0:02:53.7]}
10. a4 {[%clk 0:02:45.3]} 10... c6 {[%clk 0:02:53.3]} 11. b3 {[%clk 0:02:04.7]}
11... c3 {[%clk 0:02:34.9]} 12. Ne4 {[%clk 0:02:02.3]} 12... b4 {[%clk 0:02:35]}
13. O-O {[%clk 0:01:45.4]} 13... Na6 {[%clk 0:02:25.3]} 14. Nc4 {[%clk
0:01:42.6]} 14... O-O {[%clk 0:02:21.2]} 15. Qc2 {[%clk 0:01:43.1]} 15... Bb7
{[%clk 0:02:04.4]} 16. Ned6 {[%clk 0:01:37.2]} 16... Rb8 {[%clk 0:02:03]} 17. e4
{[%clk 0:01:32]} 17... Ne7 {[%clk 0:02:02.6]} 18. e5 {[%clk 0:01:27.9]} 18...
Ba8 {[%clk 0:02:01.8]} 19. Be4 {[%clk 0:01:14.6]} 19... h6 {[%clk 0:01:53.7]}
20. Rad1 {[%clk 0:01:13.8]} 20... Qc7 {[%clk 0:01:53]} 21. f4 {[%clk 0:01:07.9]}
21... c5 {[%clk 0:01:30.5]} 22. Bxa8 {[%clk 0:01:00.1]} 22... Rxa8 {[%clk
0:01:31.4]} 23. f5 {[%clk 0:00:57.5]} 23... cxd4 {[%clk 0:01:17.2]} 24. f6
{[%clk 0:00:55.5]} 24... Ng6 {[%clk 0:01:12.4]} 25. fxg7 {[%clk 0:00:54.3]}
25... Kxg7 {[%clk 0:01:12.7]} 26. Rxd4 {[%clk 0:00:51.6]} 26... Qc5 {[%clk
0:01:10.5]} 27. Qf2 {[%clk 0:00:50.9]} 27... Rad8 {[%clk 0:00:46.2]} 28. h4
{[%clk 0:00:23]} 28... h5 {[%clk 0:00:45.7]} 29. Rfd1 {[%clk 0:00:19.6]} 29...
Nxe5 {[%clk 0:00:27.8]} 30. Ne4 {[%clk 0:00:18.5]} 30... Rxd4 {[%clk 0:00:20.3]}
31. Nxc5 {[%clk 0:00:07.9]} 31... Rxd1+ {[%clk 0:00:19.6]} 32. Kg2 {[%clk
0:00:08]} 32... Nxc5 {[%clk 0:00:19.5]} 33. Nxe5 {[%clk 0:00:07.9]} 33... Rd2
{[%clk 0:00:16.6]} 0-1

[Event "*** SCC Grand Prix: Titled Tuesday Blitz"]
[Site "Chess.com"]
[Date "2020.10.13"]
[Round "1"]
[White "Fandorine"]
[Black "Balla_Tamas"]
[Result "1-0"]
[WhiteElo "2861"]
[BlackElo "2451"]
[TimeControl "180+1"]
[EndTime "10:07:17 PDT"]
[Termination "Fandorine won by resignation"]

1. Nf3 {[%clk 0:03:00.2]} 1... c5 {[%clk 0:02:54.8]} 2. g3 {[%clk 0:03:00.6]}
2... g6 {[%clk 0:02:54.4]} 3. Bg2 {[%clk 0:03:01.5]} 3... Bg7 {[%clk 0:02:55]}
4. O-O {[%clk 0:03:02.4]} 4... Nc6 {[%clk 0:02:55.2]} 5. d3 {[%clk 0:03:03.3]}
5... e6 {[%clk 0:02:50.2]} 6. e4 {[%clk 0:03:03]} 6... Nge7 {[%clk 0:02:50.1]}
7. Nbd2 {[%clk 0:03:02.9]} 7... b6 {[%clk 0:02:48.2]} 8. Re1 {[%clk 0:03:02.8]}
8... d6 {[%clk 0:02:48.3]} 9. c3 {[%clk 0:02:54.5]} 9... Bb7 {[%clk 0:02:44]}
10. a4 {[%clk 0:02:53.1]} 10... a6 {[%clk 0:02:43.1]} 11. h4 {[%clk 0:02:51.5]}
11... h6 {[%clk 0:02:42.6]} 12. Nc4 {[%clk 0:02:48]} 12... b5 {[%clk 0:02:34.2]}
13. axb5 {[%clk 0:02:48.9]} 13... axb5 {[%clk 0:02:34.1]} 14. Rxa8 {[%clk
0:02:49.8]} 14... Bxa8 {[%clk 0:02:34.2]} 15. Ne3 {[%clk 0:02:49.9]} 15... Ne5
{[%clk 0:02:23.1]} 16. Nxe5 {[%clk 0:02:42]} 16... dxe5 {[%clk 0:02:23]} 17. Ng4
{[%clk 0:02:29.4]} 17... h5 {[%clk 0:02:16.9]} 18. Nh2 {[%clk 0:02:29.4]} 18...
Qd7 {[%clk 0:02:13.7]} 19. Be3 {[%clk 0:02:27.7]} 19... c4 {[%clk 0:01:51.4]}
20. dxc4 {[%clk 0:02:24.2]} 20... bxc4 {[%clk 0:01:52]} 21. Bc5 {[%clk
0:02:16.7]} 21... Qc6 {[%clk 0:01:30.1]} 22. Bb4 {[%clk 0:02:12.8]} 22... f6
{[%clk 0:01:25.2]} 23. Re2 {[%clk 0:02:03.8]} 23... Bh6 {[%clk 0:01:19.1]} 24.
Nf1 {[%clk 0:01:29.6]} 24... Kf7 {[%clk 0:01:17.9]} 25. Ne3 {[%clk 0:01:29.6]}
25... Bxe3 {[%clk 0:01:16.5]} 26. Rxe3 {[%clk 0:01:28.2]} 26... Qc7 {[%clk
0:01:11.4]} 27. Re2 {[%clk 0:01:25.9]} 27... Rd8 {[%clk 0:01:10.4]} 28. Rd2
{[%clk 0:01:25.9]} 28... Rxd2 {[%clk 0:01:00.3]} 29. Qxd2 {[%clk 0:01:26.8]}
29... Kg7 {[%clk 0:00:56.1]} 30. f3 {[%clk 0:01:19.6]} 30... Qa7+ {[%clk
0:00:48.5]} 31. Qf2 {[%clk 0:01:15.6]} 31... Qxf2+ {[%clk 0:00:45.7]} 32. Kxf2
{[%clk 0:01:16.5]} 32... Nc6 {[%clk 0:00:45.6]} 33. Bf1 {[%clk 0:01:12.9]} 33...
f5 {[%clk 0:00:37.5]} 34. Bd6 {[%clk 0:00:55.9]} 34... fxe4 {[%clk 0:00:31]} 35.
fxe4 {[%clk 0:00:56.8]} 35... Kf6 {[%clk 0:00:30.2]} 36. Bxc4 {[%clk 0:00:56]}
36... Na5 {[%clk 0:00:30.8]} 37. Bd3 {[%clk 0:00:56.2]} 37... Nb3 {[%clk
0:00:30.9]} 38. Ke3 {[%clk 0:00:55.9]} 38... Bc6 {[%clk 0:00:27.4]} 39. Bc2
{[%clk 0:00:52.1]} 39... Na5 {[%clk 0:00:25.4]} 40. b3 {[%clk 0:00:50.2]} 40...
Nb7 {[%clk 0:00:22.7]} 41. Bb4 {[%clk 0:00:48]} 41... g5 {[%clk 0:00:22.8]} 42.
c4 {[%clk 0:00:44.5]} 42... g4 {[%clk 0:00:19.7]} 43. Bc3 {[%clk 0:00:42.3]}
43... Nd6 {[%clk 0:00:17.7]} 44. Bd3 {[%clk 0:00:40.3]} 44... Nb7 {[%clk
0:00:16.6]} 45. b4 {[%clk 0:00:39]} 45... Nd6 {[%clk 0:00:16.7]} 46. b5 {[%clk
0:00:38.6]} 46... Bd7 {[%clk 0:00:15.9]} 47. Bb4 {[%clk 0:00:38.2]} 1-0